[Event "FRA-ch Teams Top 16-B 2022"]
[Site "Chartres"]
[Date "2022.06.09"]
[Round "1.2"]
[White "Marzolo, Cyril"]
[Black "Nihal Sarin"]
[Result "0-1"]
[ECO "D24"]
[WhiteElo "2376"]
[BlackElo "2646"]
[Annotator "TA"]
[PlyCount "54"]
[EventDate "2022.06.09"]
[EventType "team-tourn"]
[EventCountry "FRA"]
[SourceTitle "playchess.com"]
[Source "ChessBase"]
[SourceQuality "1"]
[TimeControl "40/5400+30:1800+30"]

{[%evp 9,54,25,59,49,58,47,50,0,0,7,0,0,2,-13,-10,-12,-7,-13,-10,-48,-60,-96,-90,-89,-86,-163,-166,-156,-95,-105,-41,-160,-161,-202,-94,-108,-108,-101,0,-225,-124,-103,-93,-135,-32,-50,218]} 1. d4 {[%emt 0:03:09]} Nf6 {[%emt 0:00:09]} 2. c4 {[%emt 0:03:36]} e6 {[%emt 0:00:07]} 3. Nf3 {[%emt 0:01:05]} d5 {[%emt 0:00:09]} 4. Nc3 {[%emt 0:01:40]} dxc4 {[%emt 0:00:52]} 5. e4 {[%emt 0:01:36][%cal Be2e4,Be4e5][%mdl 32]} b5 {[%emt 0:00:24]} 6. e5 {[%emt 0:04:35] D24: Queen's Gambit Accepted: 3 Nf3 Nf6 4 Nc3.} Nd5 {[%emt 0:00:05]} 7. Nxb5 {[%emt 0:00:08]} Nb6 {[%emt 0:00:04]} 8. g3 {[%emt 0:03:18] White is slightly better.} Bb7 {[%emt 0:03:31] ...Bb4+ is the strong threat.} 9. Bg2 {[%emt 0:00:06]} Be7 {[%emt 0:00:13]} 10. O-O {[%emt 0:00:41]} O-O {[%emt 0:01:14]} 11. Qc2 {[%emt 0:00:02][%cal Of3g5]} Nc6 {[%emt 0:00:21] [#]} 12. Qe4 $146 {[%emt 0:04:04]} ({Predecessor:} 12. Rd1 Rb8 13. Be3 Nb4 14. Qe2 Be4 15. Ne1 Bg6 16. b3 cxb3 17. axb3 c6 18. Nc3 {0-1 (44) Swapnil,S (2493)-Svane,R (2595) Douglas 2018}) 12... Rb8 {[%emt 0:14:12]} 13. Qg4 {[%emt 0:00:44]} Kh8 {[%emt 0:00:01]} 14. h4 {[%emt 0:07:17]} Nb4 {[%emt 0:09:20]} 15. Bg5 {[%emt 0:12:07]} h6 {[%emt 0:14:00]} 16. Bxe7 {[%emt 0:02:18]} Qxe7 {[%emt 0:04:22]} 17. Nd2 {[%emt 0:07:54]} (17. Nxa7 $2 Qd7 18. a3 Nd3 $19) (17. Nc3 $17 {was necessary.}) 17... Bxg2 $1 $19 {[%emt 0:06:17]} 18. Kxg2 {[%emt 0:00:04]} Qd7 {[%emt 0:02:44]} (18... Nd3 $142 $1 {Strongly threatening ...Qb4.} 19. Rab1 (19. Nxa7 $2 Qb4 $19) 19... Na4) 19. Na3 {[%emt 0:01:08]} (19. Nxa7 $2 Ra8 20. Qe4 (20. a3 $2 Nd3 $19) 20... Rxa7 $19) 19... Nd3 {[%emt 0:12:40]} (19... Rfd8 $1 $17 20. Qe2 Qc6+ 21. Qf3 Rxd4 22. Qxc6 Nxc6) 20. Rab1 {[%emt 0:22:58]} (20. b3 $1 $15) 20... Rfd8 $17 {[%emt 0:05:37]} 21. Rfd1 {[%emt 0:00:22] [#]} Qd5+ {[%emt 0:01:31]} ({And not} 21... Qxd4 22. Qxd4 Rxd4 23. Ndxc4 $17) (21... Qa4 $1 $19 {[%cal Oc4c3] has better winning chances. White must now prevent ...c3!} 22. Ndxc4 Nxc4 23. Rxd3 Nxe5) 22. Qe4 {[%emt 0:10:29]} Qxe4+ {[%emt 0:01:09]} ({Not} 22... Qxd4 23. Qxd4 Rxd4 24. Ndxc4 $15) 23. Nxe4 {[%emt 0:00:05]} Rd7 {[%emt 0:22:58]} (23... Rxd4 $17 24. Nc5 Rbd8 25. Nxd3 cxd3) 24. d5 $2 (24. Nc2 $11) 24... Rxd5 {[%emt 0:00:00]} ({Better is} 24... exd5 $19 25. Nc3 Nxe5) 25. Nc3 {[%emt 0:00:50]} Rd4 {[%emt 0:00:00]} ({Don't take} 25... Nxe5 26. Nxd5 Nxd5 27. Rd4 $14) 26. f4 {[%emt 0:00:17] [#]} c5 {[%emt 0:00:00] 0x0.00166ba0970cdp-1022s more active pieces.} (26... g5 $1 $17 {[%cal Rg5f4]} 27. hxg5 hxg5) 27. Kf3 {[%emt 0:05:28]} Nd5 $2 {[%emt 0:00:00][%mdl 40960] Weighted Error Value: White=0.40/Black=0.28 (precise) . Loss on time!?} (27... Rbd8 $15 28. b3 f6 29. exf6 gxf6) 0-1

[Event "FRA-ch Teams Top 16-B 2022"]
[Site "Chartres"]
[Date "2022.06.09"]
[Round "1.3"]
[White "Mendonca, Leon Luke"]
[Black "Crut, Aurelien"]
[Result "1-0"]
[ECO "A07"]
[WhiteElo "2551"]
[BlackElo "2355"]
[Annotator "TA"]
[PlyCount "117"]
[EventDate "2022.06.09"]
[EventType "team-tourn"]
[EventCountry "FRA"]
[SourceTitle "playchess.com"]
[Source "ChessBase"]
[SourceQuality "1"]
[TimeControl "40/5400+30:1800+30"]

{[%evp 9,117,15,22,4,12,12,10,11,12,8,6,-36,0,-16,30,41,35,30,58,28,51,34,47,10,42,22,24,21,208,44,54,54,47,53,49,48,66,26,31,27,525,-46,-32,-34,-43,-40,-33,-92,0,0,0,0,8,9,9,13,8,10,5,10,58,22,37,31,82,98,84,93,89,92,106,116,104,91,119,109,141,143,138,141,131,139,126,118,143,132,126,130,230,169,177,128,446,451,685,644,481,639,642,629,618,562,479,402,1833,1853,12839,12840,12850,12850]} 1. Nf3 {[%emt 0:00:07]} d5 {[%emt 0:00:13]} 2. g3 {[%emt 0:01:54]} Bg4 {[%emt 0:00:37]} 3. Bg2 {[%emt 0:00:20]} c6 {[%emt 0:01:04]} 4. O-O {[%emt 0:01:13]} Nd7 {[%emt 0:01:26]} 5. d3 {[%emt 0:01:09]} e6 {[%emt 0:01:40]} 6. h3 {[%emt 0:01:55] A07: Réti Opening: New York and Capablanca Systems.} Bh5 {[%emt 0:02:26]} 7. c4 {[%emt 0:09:15]} Bd6 {[%emt 0:20:11]} 8. Nc3 {[%emt 0:10:52] The position is equal.} Ne7 {[%emt 0:09:36]} 9. Qb3 {[%emt 0:08:02]} O-O {[%emt 0:13:31] [#]} 10. e4 $146 {[%emt 0:10:53][%cal Rc4d5]} (10. Qxb7 Nc5 11. Qb4 Bxf3 12. Bxf3 a5 $17) ({Predecessor:} 10. d4 Qb6 11. Rd1 Qxb3 12. axb3 Bxf3 13. Bxf3 f5 14. e3 a6 15. Bd2 Nf6 16. Be1 {1-0 (66) Kramnik,V (2808)-Jobava,B (2707) Leuven 2017}) 10... Nc5 {[%emt 0:09:04][%csl LRb3,LRd3]} 11. Qc2 {[%emt 0:01:46]} dxc4 {[%emt 0:06:37]} (11... Bxf3 $142 12. Bxf3 d4) 12. dxc4 $11 {[%emt 0:04:33]} Bxf3 {[%emt 0:04:26]} 13. Bxf3 {[%emt 0:00:27]} e5 {[%emt 0:01:11]} 14. Be3 {[%emt 0:06:08] aiming for Rfd1.} Ng6 {[%emt 0:04:16]} 15. Rfd1 {[%emt 0:04:04] Threatens to win with Bxc5.} Qe7 {[%emt 0:02:41]} 16. Bg4 {[%emt 0:03:04]} Rfd8 {[%emt 0:02:49]} 17. Rd2 {[%emt 0:07:02]} Bc7 {[%emt 0:06:30]} 18. Rad1 {[%emt 0:10:48]} a5 $2 {[%emt 0:02:56]} (18... Rxd2 $11 {and Black stays safe.} 19. Rxd2 (19. Qxd2 Rd8 $14) 19... Nf8) 19. h4 $2 {[%emt 0:02:29]} (19. Bxc5 $18 Rxd2 20. Rxd2 (20. Qxd2 Qxc5 21. Na4 Qxc4 $11) 20... Qxc5 21. Rd7) 19... Ne6 {[%emt 0:01:55]} 20. Bxe6 {[%emt 0:03:14]} Qxe6 {[%emt 0:01:07]} 21. Qb3 {[%emt 0:01:04]} Rxd2 {[%emt 0:02:15]} 22. Rxd2 {[%emt 0:00:14]} Qc8 {[%emt 0:02:15]} 23. h5 {[%emt 0:08:45] White is much more active.} Nf4 {[%emt 0:00:49]} 24. Qd1 {[%emt 0:02:18]} ({Weaker is} 24. gxf4 exf4 25. Qd1 fxe3 $17) 24... Qh3 $2 {[%emt 0:01:22][%mdl 8192]} 25. Qf3 $2 {[%emt 0:00:47]} ({White must play} 25. gxf4 $18 h6 26. f5) 25... Qxh5 {[%emt 0:00:26]} (25... Nxh5 {keeps more tension.} 26. Qf5 Qxf5 27. exf5 Rd8) 26. Qxh5 {[%emt 0:00:25]} Nxh5 {[%emt 0:00:04]} 27. Rd7 {[%emt 0:00:40]} Rc8 {[%emt 0:00:22]} 28. Bg5 {[%emt 0:00:29] [#]} (28. Na4 $15) 28... h6 {[%emt 0:00:46]} (28... Kf8 $1 $17) 29. Be7 {[%emt 0:00:29]} g6 {[%emt 0:00:35]} 30. Na4 {[%emt 0:00:27]} b5 {[%emt 0:00:38]} 31. cxb5 {[%emt 0:00:32]} cxb5 {[%emt 0:00:03]} 32. Nc3 {[%emt 0:00:29]} Bb6 {[%emt 0:00:38]} 33. Kg2 {[%emt 0:00:33]} Kg7 {[%emt 0:01:12]} 34. Nd5 {[%emt 0:00:30]} Rc6 {[%emt 0:00:47]} (34... Bc5 $11) 35. b3 {[%emt 0:00:31][%cal Bb2b3,Bb3b4][%mdl 32]} ({Reject} 35. Rb7 Bd4 $15) 35... Bc5 {[%emt 0:00:38]} 36. Bd8 {[%emt 0:00:28]} a4 {[%emt 0:00:28] [#]} (36... Kf8 $14) 37. b4 $1 $16 {[%emt 0:00:30]} Rd6 {[%emt 0:00:25]} 38. Rxd6 {[%emt 0:00:28]} Bxd6 {[%emt 0:00:05][%mdl 4096] Endgame KBN-KBN} 39. a3 {[%emt 0:01:06]} f5 {[%emt 0:01:04]} 40. Nc3 {[%emt 0:00:00]} Kf7 {[%emt 0:00:43]} 41. Nxb5 {[%emt 0:30:15]} Ke6 {[%emt 0:03:16]} 42. Nc3 {[%emt 0:00:00]} Kd7 {[%emt 0:12:07]} 43. Bb6 {[%emt 0:00:00]} Nf6 {[%emt 0:03:27]} 44. exf5 {[%emt 0:00:00]} gxf5 {[%emt 0:00:04]} 45. Be3 {[%emt 0:00:00]} h5 {[%emt 0:04:47]} 46. Nxa4 {[%emt 0:00:00]} f4 {[%emt 0:04:42]} 47. gxf4 {[%emt 0:00:00]} exf4 {[%emt 0:00:03]} 48. Bd4 {[%emt 0:00:00]} Ne8 {[%emt 0:00:35]} (48... Ng4 $16 49. Nc5+ Kc6) 49. Kh3 {[%emt 0:00:00]} Ke6 {[%emt 0:01:26]} 50. Kh4 {[%emt 0:00:00]} ({Better is} 50. Nb6 $18) 50... Kf5 $2 {[%emt 0:03:00][%mdl 8192]} (50... Kd5 $16 {is tougher.}) 51. Nc5 $18 {[%emt 0:00:13]} Nc7 {[%emt 0:00:45]} (51... Kg6 $142 52. a4 Be7+ 53. Kh3 Nd6) 52. a4 {[%emt 0:01:18]} Nd5 {[%emt 0:00:54]} 53. b5 {[%emt 0:00:26]} Bc7 {[%emt 0:01:15]} 54. Kxh5 {[%emt 0:01:49]} f3 {[%emt 0:00:31]} 55. Nb3 {[%emt 0:01:02]} Ke4 {[%emt 0:00:10]} 56. Bc5 {[%emt 0:01:14] a5 is the strong threat.} Nc3 {[%emt 0:00:30]} (56... Nf6+ $142 57. Kg6 Nd7) 57. b6 {[%emt 0:00:20] White is clearly winning.} Bxb6 {[%emt 0:00:36]} 58. Bxb6 {[%emt 0:00:06]} Nxa4 {[%emt 0:00:03]} 59. Nc5+ {[%emt 0:00:17] Weighted Error Value: White=0.26 (precise) /Black=0.49} 1-0

[Event "FRA-ch Teams Top 16-B 2022"]
[Site "Chartres"]
[Date "2022.06.09"]
[Round "1.4"]
[White "Benitah, Yohan"]
[Black "Papadiamandis, Elliot"]
[Result "1/2-1/2"]
[ECO "D85"]
[WhiteElo "2383"]
[BlackElo "2373"]
[Annotator "TA"]
[PlyCount "31"]
[EventDate "2022.06.09"]
[EventType "team-tourn"]
[EventCountry "FRA"]
[SourceTitle "playchess.com"]
[Source "ChessBase"]
[SourceQuality "1"]
[TimeControl "40/5400+30:1800+30"]

{[%evp 9,31,4,39,8,10,17,16,13,16,7,30,0,22,24,29,0,13,5,5,-10,-6,-22,-21,-19]} 1. d4 {[%emt 0:01:04]} Nf6 {[%emt 0:00:36]} 2. c4 {[%emt 0:00:07]} g6 {[%emt 0:00:07]} 3. Nc3 {[%emt 0:00:10]} d5 {[%emt 0:00:28]} 4. cxd5 {[%emt 0:00:17]} Nxd5 {[%emt 0:00:12]} 5. Bd2 {[%emt 0:00:07][%cal Bc1d2,Bd2c3,Bc3d4][%mdl 32]} c5 {[%emt 0:01:51]} 6. e4 {[%emt 0:02:59] D85: Exchange Grünfeld: Unusual White 7th moves and lines with 7 Nf3.} Nxc3 {[%emt 0:00:11]} 7. Bxc3 {[%emt 0:00:02]} cxd4 {[%emt 0:00:52]} 8. Bxd4 {[%emt 0:01:52]} e5 {[%emt 0:00:12]} 9. Bc3 {[%emt 0:10:06] [#]} Qb6 $146 {[%emt 0:21:42]} ({Predecessor:} 9... Bd6 10. Bb5+ Nc6 11. Nf3 O-O 12. O-O Qe7 13. h3 f6 14. Bxc6 bxc6 15. Qa4 Be6 {0-1 (27) Wojtaszek,R (2700)-Dubov,D (2714) Terme Catez 2021}) 10. Bc4 {[%emt 0:08:50]} Bg7 {[%emt 0:19:52]} (10... Bc5 $5 {[%cal Rc5f2]}) 11. Nf3 {[%emt 0:08:22]} O-O {[%emt 0:01:49]} 12. O-O {[%emt 0:03:33]} ({Not} 12. Nxe5 $2 Bxe5 13. Bxe5 Qb4+ 14. Qd2 Qxc4 $19) (12. Qb3 $5 {[%cal Rc3b4]}) 12... Nc6 {[%emt 0:04:38] The position is equal.} 13. Qa4 {[%emt 0:17:33]} Bg4 {[%emt 0:15:08]} 14. Nd2 {[%emt 0:03:44]} Nd4 {[%emt 0:04:51]} 15. h3 {[%emt 0:17:57]} Be6 {[%emt 0:08:06]} 16. Rfe1 {[%emt 0:06:23] A rather calm draw.  Weighted Error Value: White=0.17 (very precise) /Black=0.09 (flawless)} 1/2-1/2

[Event "FRA-ch Teams Top 16-B 2022"]
[Site "Chartres"]
[Date "2022.06.09"]
[Round "1.5"]
[White "Rakotomaharo, Fy Antenaina"]
[Black "Rouler, Charly"]
[Result "1-0"]
[ECO "B41"]
[WhiteElo "2467"]
[BlackElo "2345"]
[Annotator "TA"]
[PlyCount "91"]
[EventDate "2022.06.09"]
[EventType "team-tourn"]
[EventCountry "FRA"]
[SourceTitle "playchess.com"]
[Source "ChessBase"]
[SourceQuality "1"]
[TimeControl "40/5400+30:1800+30"]

{[%evp 21,91,44,64,58,66,44,47,27,37,22,33,26,47,7,27,0,0,0,37,12,45,43,40,41,42,47,40,56,45,25,38,0,16,0,0,0,45,36,33,45,33,47,43,12,64,66,57,55,55,49,205,108,132,103,165,132,594,352,638,78,74,78,53,-27,0,-143,565,566,551,571,1004,991]} 1. e4 {[%emt 0:00:03]} c5 {[%emt 0:00:06]} 2. Nf3 {[%emt 0:00:07]} e6 {[%emt 0:00:04]} 3. d4 {[%emt 0:00:20]} cxd4 {[%emt 0:00:03]} 4. Nxd4 {[%emt 0:00:05]} a6 {[%emt 0:00:06]} 5. c4 {[%emt 0:00:13]} Nf6 {[%emt 0:00:11]} 6. Nc3 {[%emt 0:00:05]} d6 {[%emt 0:00:05]} 7. Be3 {[%emt 0:01:06]} Be7 {[%emt 0:00:14]} 8. Be2 {[%emt 0:00:09]} O-O {[%emt 0:00:21]} 9. O-O {[%emt 0:01:15]} b6 {[%emt 0:00:42]} 10. Qd2 {[%emt 0:00:30]} Bb7 {[%emt 0:00:13]} 11. f3 {[%emt 0:00:05]} Qc7 {[%emt 0:01:38]} 12. Rfc1 $1 {[%emt 0:00:36] 12.Rfc1 is better than 12.Rac1. B41: Sicilian: Kan Variation: 5 c4.} Rc8 {[%emt 0:05:11]} 13. a4 {[%emt 0:01:00]} Qd8 {[%emt 0:04:46]} 14. Bf1 {[%emt 0:06:14] White is slightly better.} Nc6 {[%emt 0:01:26] [#]} 15. Qf2 $146 {[%emt 0:03:58]} ({Predecessor:} 15. Nxc6 Bxc6 16. Ne2 Rab8 17. Nd4 Ba8 18. Rc2 Nd7 19. a5 bxa5 20. Qxa5 Qxa5 21. Rxa5 {1-0 (53) Andonov,B (2335)-Kalesis,N (2315) Peristeri 1992}) 15... Nd7 {[%emt 0:06:49]} 16. Nxc6 {[%emt 0:04:28]} Bxc6 {[%emt 0:01:24]} 17. Rab1 {[%emt 0:17:03]} Rab8 {[%emt 0:04:56]} 18. b4 {[%emt 0:02:15]} Ba8 {[%emt 0:07:11]} 19. Bd4 {[%emt 0:10:07]} Bf6 {[%emt 0:13:32]} 20. Rd1 {[%emt 0:06:18] Black should prevent Bxf6.} Qe7 {[%emt 0:10:33]} 21. Bxf6 {[%emt 0:03:58]} Nxf6 {[%emt 0:00:11]} 22. Qd4 {[%emt 0:02:04]} Rd8 {[%emt 0:01:37]} 23. Rb2 {[%emt 0:01:21]} Qc7 {[%emt 0:09:00]} 24. Rbd2 {[%emt 0:01:23]} Rd7 {[%emt 0:03:30]} 25. Qe3 {[%emt 0:03:07][%cal Oa4a5]} Rbd8 {[%emt 0:03:17]} 26. g4 {[%emt 0:05:38]} h6 {[%emt 0:11:00]} 27. g5 {[%emt 0:02:48]} hxg5 {[%emt 0:00:19]} 28. Qxg5 {[%emt 0:00:05]} a5 {[%emt 0:05:21]} 29. Nb5 {[%emt 0:14:50]} Qc6 {[%emt 0:00:07]} 30. Rg2 {[%emt 0:01:53][%csl Gg2,LRf6,LRg7][%cal Rg5g7]} Ne8 {[%emt 0:01:14]} 31. bxa5 $40 {[%emt 0:01:17][%mdl 128] White is up to no good.} bxa5 {[%emt 0:00:04]} 32. Rgd2 {[%emt 0:00:13]} f6 {[%emt 0:05:50]} (32... Nf6 $11) 33. Qe3 $14 {[%emt 0:01:44]} Nc7 {[%emt 0:03:07]} 34. Bh3 {[%emt 0:02:37]} Kf7 {[%emt 0:00:20]} 35. Kh1 {[%emt 0:02:36]} Ke7 $2 {[%emt 0:01:55]} (35... Nxb5 $14 36. cxb5 Qc4) 36. Rg1 {[%emt 0:01:53]} (36. Rg2 $1 $18 {[%cal Rg2g7]} Rg8 37. Qg1) 36... Rg8 $16 {[%emt 0:00:51]} 37. Nd4 {[%emt 0:02:17] White is much more active.} Qxa4 {[%emt 0:01:46]} (37... Qc5 $16 {might work better.}) 38. Rb2 $1 $18 {[%emt 0:01:42]} Qxc4 $2 {[%emt 0:00:00][%mdl 8192]} (38... Kf7 $16 {is tougher.}) 39. Rc2 {[%emt 0:00:48]} Qa6 {[%emt 0:00:26]} (39... Qb4 40. Rg6 Qb1+ 41. Rc1 Qb2) 40. Rxc7 $2 {[%emt 0:01:41]} Rxc7 $16 {[%emt 0:00:02]} 41. Bxe6 {[%emt 0:30:07]} Rh8 {[%emt 0:02:30] [#]} 42. Ba2 {[%emt 0:00:00]} (42. Bh3 $1 $14 g5 43. Qb3) 42... g5 {[%emt 0:08:57]} (42... Qa7 43. Qd2 Qb6 44. Ne6 $16) 43. Rxg5 {[%emt 0:00:00]} Qf1+ $2 {[%emt 0:01:38][%mdl 8192] [#]} (43... fxg5 $17 44. Qxg5+ Ke8 45. Qg6+ Kd8 46. Qf6+ Kc8 47. Qxh8+ Kb7) 44. Rg1 $18 {[%emt 0:00:00] White is clearly winning.} Qh3 {[%emt 0:00:16][%csl Gh8][%cal Rh3h2]} 45. Qf4 {[%emt 0:00:00] Threatens to win with Nf5+.} Rd7 {[%emt 0:04:57]} 46. Be6 {[%emt 0:00:00] Weighted Error Value: White=0.47/Black=0.68} 1-0

[Event "FRA-ch Teams Top 16-B 2022"]
[Site "Chartres"]
[Date "2022.06.09"]
[Round "1.6"]
[White "Brailly-Vignal, Bastien"]
[Black "Burri, Quentin"]
[Result "1/2-1/2"]
[ECO "D10"]
[WhiteElo "2372"]
[BlackElo "2401"]
[Annotator "TA"]
[PlyCount "26"]
[EventDate "2022.06.09"]
[EventType "team-tourn"]
[EventCountry "FRA"]
[SourceTitle "playchess.com"]
[Source "ChessBase"]
[SourceQuality "1"]
[TimeControl "40/5400+30:1800+30"]

{[%evp 9,26,5,29,22,31,25,22,15,25,23,20,25,25,0,19,0,15,0,35]} 1. d4 {[%emt 0:00:04]} d5 {[%emt 0:00:05]} 2. c4 {[%emt 0:00:11]} c6 {[%emt 0:00:09]} 3. Nc3 {[%emt 0:00:26]} Nf6 {[%emt 0:00:05]} 4. cxd5 {[%emt 0:00:49]} cxd5 {[%emt 0:00:11]} 5. Bg5 {[%emt 0:00:44]} e6 {[%emt 0:03:38]} 6. Rc1 {[%emt 0:03:04] D10: Slav Defence: 3 cxd5 (without early Nf3) and 3 Nc3.} Be7 {[%emt 0:10:07]} 7. e3 {[%emt 0:01:38]} O-O {[%emt 0:00:35]} 8. Bd3 {[%emt 0:02:16]} Nc6 {[%emt 0:00:35]} 9. Bb1 {[%emt 0:08:49] [#]} Bd7 $146 {[%emt 0:11:27]} ({Predecessor:} 9... h6 10. Bh4 b6 11. Nf3 Bb7 12. a3 Rc8 13. O-O Re8 14. Qd3 g6 15. b4 Bf8 {1-0 (27) Gomez Guardo,L (1833)-De la Hoz Paternina,F (1326) Cartagena 2019}) 10. Qd3 {[%emt 0:08:37] [#] And now Bxf6 would win.} Nb4 {[%emt 0:03:34]} 11. Qd1 {[%emt 0:02:19]} Nc6 {[%emt 0:02:02] The position is equal.} 12. Qd3 {[%emt 0:00:51] Threatens to win with Bxf6.} Nb4 {[%emt 0:00:24]} 13. Qd1 {[%emt 0:00:10]} Nc6 {[%emt 1:04:08] Not much happened in this game.  Weighted Error Value: White=0.08 (flawless) /Black=0.04 (flawless)} 1/2-1/2

[Event "FRA-ch Teams Top 16-B 2022"]
[Site "Chartres"]
[Date "2022.06.09"]
[Round "1.7"]
[White "Sokolov, Andrei"]
[Black "Astolfi, Frederic"]
[Result "1-0"]
[ECO "B16"]
[WhiteElo "2516"]
[BlackElo "2144"]
[Annotator "TA"]
[PlyCount "85"]
[EventDate "2022.06.09"]
[EventType "team-tourn"]
[EventCountry "FRA"]
[SourceTitle "playchess.com"]
[Source "ChessBase"]
[SourceQuality "1"]
[TimeControl "40/5400+30:1800+30"]

{[%evp 17,85,64,84,78,83,56,68,38,60,55,45,38,41,24,37,22,21,25,41,40,36,39,50,49,58,40,83,72,94,95,89,92,88,89,85,66,80,89,90,88,108,43,47,0,125,81,96,87,85,91,116,81,95,25,310,316,307,235,838,821,848,840,818,811,833,798,1483,1413,1336,804]} 1. e4 {[%emt 0:00:05]} c6 {[%emt 0:00:05]} 2. d4 {[%emt 0:00:12]} d5 {[%emt 0:00:09]} 3. Nd2 {[%emt 0:00:09]} dxe4 {[%emt 0:00:11]} 4. Nxe4 {[%emt 0:00:05]} Nf6 {[%emt 0:00:26]} 5. Nxf6+ {[%emt 0:00:23]} gxf6 {[%emt 0:00:13]} 6. c3 {[%emt 0:01:35]} Bf5 {[%emt 0:01:27]} 7. Nf3 {[%emt 0:00:54]} e6 {[%emt 0:01:04]} 8. g3 {[%emt 0:02:34]} Qd5 {[%emt 0:04:07]} 9. Bg2 {[%emt 0:02:25]} Qc4 {[%emt 0:03:44]} 10. Nh4 {[%emt 0:34:38] B16: Caro-Kann: Bronstein-Larsen Variation.} Bg6 {[%emt 0:08:08]} 11. Be3 {[%emt 0:05:22]} Nd7 {[%emt 0:05:10]} 12. Qd2 {[%emt 0:02:09] White is slightly better.} Qd3 {[%emt 0:09:22]} 13. Qxd3 {[%emt 0:06:38]} Bxd3 {[%emt 0:00:10] [#]} 14. O-O-O $146 {[%emt 0:00:51]} ({Predecessor:} 14. b3 O-O-O 15. Kd2 Ba6 16. Kc2 Bd6 17. f4 f5 18. c4 Nf6 19. Rhd1 Rhg8 20. Nf3 {½-½ (53) Pedersen,H (2524)-Dolgov,I (2507) ICCF email 2006}) 14... Bc4 {[%emt 0:03:41]} 15. b3 {[%emt 0:04:03]} Bd5 {[%emt 0:01:47]} 16. c4 {[%emt 0:00:31]} Bxg2 {[%emt 0:01:57]} 17. Nxg2 {[%emt 0:00:07][%cal Bh4g2,Bg2f4,Bf4d5][%mdl 32]} O-O-O {[%emt 0:08:09]} 18. d5 {[%emt 0:02:31]} cxd5 {[%emt 0:09:38]} 19. cxd5 {[%emt 0:00:08]} Bc5 {[%emt 0:05:09]} 20. Rhe1 {[%emt 0:03:37]} Rhe8 {[%emt 0:06:14]} 21. Nf4 {[%emt 0:07:35]} exd5 {[%emt 0:13:43]} 22. Nxd5 {[%emt 0:03:06]} Bxe3+ {[%emt 0:00:23]} 23. Rxe3 {[%emt 0:02:01]} Rxe3 {[%emt 0:00:11]} 24. fxe3 $14 {[%emt 0:02:59][%mdl 4096] Endgame KRN-KRN} Re8 {[%emt 0:02:14]} 25. Rf1 {[%emt 0:03:30]} Re6 {[%emt 0:04:12]} 26. Kd2 {[%emt 0:02:31]} Rd6 {[%emt 0:02:03]} 27. e4 {[%emt 0:01:23]} Kd8 {[%emt 0:01:52]} 28. Ke3 {[%emt 0:02:24]} Ra6 {[%emt 0:03:36]} 29. Nb4 {[%emt 0:03:26] White is more active.} (29. a4 $16) 29... Rb6 {[%emt 0:01:03]} 30. Nd5 {[%emt 0:01:04]} ({White should play} 30. Nc2 $14) 30... Ra6 $1 $16 {[%emt 0:00:04]} 31. Rf2 {[%emt 0:00:34]} Rc6 {[%emt 0:00:24]} 32. Kd4 {[%emt 0:01:05]} b5 {[%emt 0:00:35]} 33. h4 {[%emt 0:02:36]} Ke8 {[%emt 0:01:27]} 34. h5 {[%emt 0:00:36]} Kf8 {[%emt 0:00:32]} 35. h6 {[%emt 0:00:17]} (35. Rf3 $16) 35... Rd6 $2 {[%emt 0:02:56][%mdl 8192] [#] Black cannot hold the game after this.} (35... f5 $1 $11) 36. Rc2 $1 $18 {[%emt 0:01:17][%cal Rc2c8]} Nb6 {[%emt 0:00:56][%cal Of6f5] Against Rc8+} 37. Kc5 {[%emt 0:01:21]} Rd7 {[%emt 0:00:54]} (37... Re6 38. g4 (38. Kxb5 f5 $16) 38... f5) 38. Kc6 {[%emt 0:00:43] White is clearly winning.} Rd8 {[%emt 0:00:36]} 39. Nxb6 {[%emt 0:00:34]} axb6 {[%emt 0:00:07]} 40. Kxb5 {[%emt 0:00:41]} Rd3 {[%emt 0:00:36]} 41. Kxb6 {[%emt 0:30:55]} Rxg3 {[%emt 0:30:12]} 42. b4 {[%emt 0:01:03]} Re3 {[%emt 0:01:18]} 43. Rc4 {[%emt 0:00:00] Weighted Error Value: White=0.19 (very precise) /Black=0.26 (precise)} 1-0